bitfinex/quotes_ETHUSD_20250628
["timestamp","ask_amount","ask_price","bid_price","bid_amount"]
[1751132607144,0.8182,2441.3,2441.2,11.33980763]
[1751132608186,0.9354565,2441.3,2441.2,11.33980763]
[1751132608359,0.8182,2441.3,2441.2,11.33980763]
[1751132609163,0.8182,2441.3,2441.1,0.2048]
[1751132609337,0.9354565,2441.3,2441.2,10.78880763]
[1751132609867,0.8182,2441.3,2441.2,10.78880763]
[1751132610342,0.9354565,2441.3,2441.2,8.331]
[1751132610553,0.9354565,2441.3,2441.2,10.78880763]
[1751132610934,0.9354565,2441.3,2441.2,2.45780763]
[1751132611135,0.8182,2441.3,2441.2,10.78780763]
[1751132611572,0.9354565,2441.3,2441.2,10.78780763]
[1751132612368,0.8182,2441.3,2441.2,10.78780763]
[1751132614676,0.9354565,2441.3,2441.2,10.78780763]
[1751132615178,0.9354565,2441.3,2441.2,11.33780763]
[1751132615552,0.8182,2441.3,2441.2,11.33780763]
[1751132615750,0.9354565,2441.3,2441.2,11.33780763]
[1751132616640,0.1182565,2441.3,2441.2,22.73785751]
[1751132616840,0.001,2441.3,2441.2,22.73785751]
[1751132617079,0.1182565,2441.3,2441.2,22.73785751]
[1751132617240,0.8091,2442.6,2442.3,2.4566699]
[1751132617437,0.8091,2442.6,2441.9,0.7869]
[1751132617674,0.8091,2442.6,2442.1,0.55]
[1751132617989,0.8091,2442.6,2442.0,8.357]
[1751132617990,0.8091,2442.6,2442.2,10.81373525]
[1751132618281,0.8091,2442.6,2442.4,2.45658878]
[1751132618436,0.8091,2442.6,2442.3,2.45669653]
[1751132618437,0.8091,2442.6,2442.5,6.656]
[1751132618639,0.8091,2442.6,2441.7,10.0]
[1751132618640,0.7577,2442.3,2441.7,10.0]
[1751132618847,0.7577,2442.3,2442.1,2.45683881]
[1751132619052,0.7577,2442.3,2442.2,9.11280124]
[1751132619247,0.7577,2442.3,2442.2,6.656]
[1751132619571,0.7577,2442.3,2441.7,10.55]
[1751132619572,0.7577,2442.3,2442.0,1.702]
[1751132619873,0.7577,2442.3,2441.7,2.45730433]
[1751132619874,0.7567,2442.1,2441.7,2.45730433]
[1751132620074,0.7567,2442.1,2441.2,11.22904988]
[1751132620075,9.4296101,2442.0,2441.2,9.829]
[1751132620265,2.45680296,2442.2,2441.6,2.45740498]
[1751132620266,0.7567,2441.7,2441.6,2.45740498]
[1751132620461,0.7567,2441.7,2441.6,9.11640498]
[1751132621175,0.7567,2441.7,2441.1,2.45789325]
[1751132621176,0.7567,2441.7,2441.5,2.4574425]
[1751132621351,0.7567,2441.7,2441.6,6.659]
[1751132621552,0.7567,2441.7,2441.3,1.702]
[1751132621553,0.7567,2441.6,2441.3,1.702]
[1751132621757,0.7567,2441.5,2441.3,6.66]
[1751132622166,0.7567,2441.5,2441.2,9.11775717]
[1751132622384,0.7567,2441.5,2441.3,9.11769181]
[1751132622679,0.72544831,2441.4,2441.3,9.11769181]
[1751132623397,0.72544831,2441.4,2441.3,9.11669181]
[1751132623695,0.72544831,2441.4,2441.3,6.659]
[1751132625280,0.72544831,2441.4,2441.2,2.45779002]
[1751132625579,0.72544831,2441.4,2441.3,6.658]
[1751132625885,1.51124831,2441.4,2441.3,6.658]
[1751132629584,1.46124831,2441.4,2441.3,6.658]
[1751132630161,1.46124831,2441.4,2441.2,0.2048]
[1751132630358,1.46124831,2441.4,2441.1,2.4578947]
[1751132630359,0.7858,2441.3,2441.1,2.4578947]
[1751132630554,1.80443101,2441.3,2441.2,6.654]
[1751132632086,0.7858,2441.3,2441.2,9.11180763]
[1751132632794,0.7858,2441.3,2441.2,9.31660763]
[1751132636777,0.7532,2441.5,2441.3,2.45763483]
[1751132637601,0.7532,2441.5,2441.4,6.65]
[1751132638895,0.7532,2441.5,2441.2,0.2048]
[1751132639096,10.2521101,2441.3,2441.2,1.716]
[1751132639303,10.2521101,2441.3,2441.2,6.65]
[1751132639795,0.8225,2441.3,2441.2,6.65]
[1751132639996,0.8225,2441.3,2441.1,4.17390541]
[1751132640200,0.8225,2441.3,2441.2,6.649]
[1751132640582,0.8225,2441.3,2441.1,2.45790541]
[1751132640800,0.8225,2441.3,2441.2,6.649]
[1751132641905,0.8225,2441.3,2441.2,9.10680763]
[1751132644771,0.8225,2441.3,2440.7,0.02097482]
[1751132645107,9.4296101,2440.8,2440.7,0.02097482]
[1751132645282,12.67852052,2440.8,2440.7,0.02097482]
[1751132645480,10.2203101,2440.8,2440.7,0.02097482]
[1751132645807,0.7907,2440.8,2440.7,0.02097482]
[1751132646702,0.7907,2441.0,2440.8,2.45811839]
[1751132647206,0.7907,2441.0,2440.9,2.45810971]
[1751132647577,0.7907,2441.0,2440.8,2.45816146]
[1751132648603,0.7907,2441.0,2440.9,2.45810971]
[1751132649302,0.7907,2441.0,2440.8,2.45816184]
[1751132650897,0.7907,2441.0,2440.9,2.45810971]
[1751132652081,0.7907,2441.0,2440.8,2.45816357]
[1751132652281,0.7907,2441.0,2440.7,9.13323206]
[1751132652484,9.4296101,2440.9,2440.7,0.02097482]
[1751132652788,0.8292,2440.8,2440.7,0.02097482]
[1751132653916,3.28741042,2440.8,2440.7,0.02097482]
[1751132654082,0.8292,2440.8,2440.7,0.02097482]
[1751132654278,3.28741042,2440.8,2440.7,0.02097482]
[1751132654483,3.95945873,2440.8,2440.7,0.02097482]
[1751132655207,3.95945873,2440.8,2440.3,0.002]
[1751132655208,0.8292,2440.5,2440.3,0.002]
[1751132655386,9.6344101,2440.4,2440.3,0.002]
[1751132658205,10.4636101,2440.4,2440.3,0.002]
[1751132658422,11.48564111,2440.4,2440.3,0.002]
[1751132658804,21.48564111,2440.4,2440.3,0.002]
[1751132659021,23.94425445,2440.4,2440.3,0.002]
[1751132660307,21.48564111,2440.4,2440.3,0.002]
[1751132662421,20.4636101,2440.4,2440.3,0.002]
[1751132662926,11.034,2440.4,2440.3,0.002]
[1751132663805,11.034,2440.4,2440.3,2.46071409]
[1751132663998,11.034,2440.4,2440.3,0.002]
[1751132664793,20.4636101,2440.4,2440.3,0.002]
[1751132665894,11.034,2440.4,2440.3,0.002]
[1751132666239,10.2048,2440.4,2440.3,2.46071409]
[1751132666441,0.2048,2440.4,2440.3,0.002]
[1751132666736,0.8263,2440.6,2440.4,2.4586126]
[1751132667121,0.8263,2440.6,2440.3,2.46064244]
[1751132667297,10.2559101,2440.6,2440.3,2.46064244]
[1751132667498,10.2559101,2440.6,2440.3,0.002]
[1751132669527,10.4607101,2440.6,2440.3,0.002]
[1751132670742,10.2559101,2440.6,2440.3,0.002]
[1751132670958,0.2048,2440.4,2440.3,0.002]
[1751132680072,0.2048,2440.4,2440.3,2.46071409]
[1751132681243,0.2048,2440.4,2440.3,0.002]
[1751132682282,0.2048,2440.5,2440.3,0.002]
[1751132683589,9.4296101,2440.4,2440.3,0.002]
[1751132683952,9.4296101,2440.4,2440.3,2.46071409]
[1751132684297,9.4296101,2440.4,2440.3,0.002]
[1751132690898,0.2048,2440.5,2440.3,0.002]
[1751132691508,0.2048,2440.5,2440.3,2.46066997]
[1751132693370,0.2048,2440.5,2440.3,0.002]
[1751132694295,0.2048,2440.5,2440.3,2.46070944]
[1751132697131,0.2048,2440.5,2440.4,2.45861334]
[1751132697414,0.2048,2440.8,2440.5,2.45847662]
[1751132698083,0.2048,2440.8,2440.3,1.0036]
[1751132698311,0.2048,2440.8,2440.6,2.45836914]
[1751132699010,0.2048,2440.8,2440.5,2.45847263]
[1751132699395,0.2048,2440.8,2440.3,3.46225506]
[1751132699396,9.4296101,2440.7,2440.3,0.2068]
[1751132699603,0.2048,2440.6,2440.3,2.46065604]
[1751132700100,9.4296101,2440.5,2440.3,0.002]
[1751132700306,9.4296101,2440.5,2440.3,2.46066885]
[1751132700613,10.47279111,2440.5,2440.3,0.002]
[1751132701213,10.47279111,2440.5,2440.3,2.46065627]
[1751132701432,10.47279111,2440.5,2440.3,0.002]
[1751132701725,10.47279111,2440.5,2440.3,2.46066775]
[1751132702612,10.47279111,2440.5,2440.3,0.002]
[1751132702807,0.85569831,2440.4,2440.3,0.002]
[1751132703012,1.65309831,2440.4,2440.3,0.002]
[1751132703328,4.11171165,2440.4,2440.3,0.002]
[1751132703802,1.65309831,2440.4,2440.3,0.002]
[1751132705228,0.85569831,2440.4,2440.3,0.002]
[1751132706389,0.2048,2440.4,2440.3,0.002]
[1751132706888,0.2048,2440.4,2440.3,2.46071409]
[1751132707095,0.2048,2440.4,2440.3,0.002]
[1751132710121,3.42701334,2440.4,2440.3,0.002]
[1751132710329,13.42701334,2440.4,2440.3,0.002]
[1751132710638,20.05901334,2440.4,2440.3,0.002]
[1751132714127,51.76301334,2440.4,2440.3,0.002]
[1751132717740,51.76101334,2440.4,2440.3,0.002]
[1751132720155,59.68101334,2440.4,2440.3,0.002]
[1751132725119,52.66572419,2440.3,2440.2,0.002]
[1751132728730,52.96674963,2440.3,2440.2,0.002]
[1751132731168,22.96674963,2440.3,2440.2,0.002]
[1751132731328,31.29374963,2440.3,2440.2,0.002]
[1751132743365,30.51234963,2440.3,2440.2,0.002]
[1751132743938,31.26904963,2440.3,2440.2,0.002]
[1751132746782,22.94604963,2440.3,2440.2,0.002]
[1751132746965,31.26904963,2440.3,2440.2,0.002]
[1751132747271,22.18934963,2440.3,2440.2,0.002]
[1751132747470,28.81234963,2440.3,2440.2,0.002]
[1751132747676,28.51132419,2440.3,2440.2,0.002]
[1751132751580,21.88832419,2440.3,2440.2,0.002]
[1751132751782,28.51032419,2440.3,2440.2,0.002]
[1751132756588,19.08071409,2440.3,2440.2,0.002]
[1751132756788,28.51032419,2440.3,2440.2,0.002]
[1751132756959,28.50832419,2440.3,2440.2,0.002]
[1751132757547,21.88832419,2440.3,2440.2,0.002]
[1751132757855,28.50632419,2440.3,2440.2,0.002]
[1751132759579,21.88832419,2440.3,2440.2,0.002]
[1751132759776,28.50632419,2440.3,2440.2,0.002]
[1751132760381,21.88832419,2440.3,2440.2,0.002]
[1751132760578,28.50532419,2440.3,2440.2,0.002]
[1751132767401,28.50432419,2440.3,2440.2,0.002]
[1751132770173,21.88832419,2440.3,2440.2,0.002]
[1751132770479,28.50432419,2440.3,2440.2,0.002]
[1751132770885,29.62635459,2440.3,2440.2,0.002]
[1751132772101,60.16075244,2440.3,2440.2,0.002]
[1751132772320,59.62635459,2440.3,2440.2,0.002]
[1751132775222,29.62635459,2440.3,2440.2,0.002]
[1751132775428,59.62635459,2440.3,2440.2,0.002]
[1751132776294,67.54635459,2440.3,2440.2,0.002]
[1751132779909,68.09635459,2440.3,2440.2,0.002]
[1751132782838,69.24235459,2440.3,2440.2,0.002]
[1751132783640,73.55635459,2440.3,2440.2,0.002]
[1751132783844,69.24235459,2440.3,2440.2,0.002]
[1751132785334,69.79235459,2440.3,2440.2,0.002]
[1751132785542,2.45941957,2439.6,2439.5,0.7819]
[1751132790954,9.07637514,2439.7,2439.5,0.7819]
[1751132792739,19.07637514,2439.7,2439.5,0.7819]
[1751132793447,16.617,2439.7,2439.5,0.7819]
[1751132793754,0.2048,2439.6,2439.5,0.7819]
[1751132793915,0.2048,2439.6,2439.5,3.24142039]
[1751132797553,0.2048,2439.6,2439.5,3.8322041]
[1751132805876,10.0,2440.1,2439.8,0.7568]
[1751132806772,12.45887163,2440.2,2439.8,0.7568]
[1751132807346,10.0,2440.2,2439.8,3.21597626]
[1751132807579,0.2048,2439.9,2439.8,3.21597626]
[1751132810286,0.2048,2439.9,2439.8,0.7568]
[1751132811387,0.2048,2440.1,2439.9,3.21586046]
[1751132811955,0.2048,2440.1,2439.9,0.7568]
[1751132812462,0.2048,2440.1,2439.9,3.21591328]
[1751132817992,0.2048,2440.1,2440.0,2.45901639]
[1751132819184,0.2048,2440.1,2439.9,3.21586228]
[1751132821054,0.2048,2440.1,2439.9,0.7568]
[1751132823284,0.2048,2440.1,2439.7,3.25642715]
[1751132824190,0.2048,2440.1,2439.8,2.45921097]
[1751132824566,0.2048,2440.1,2439.7,3.25646795]
[1751132824766,3.94939404,2440.1,2439.7,0.7972]
[1751132824991,0.2048,2439.8,2439.7,0.7972]
[1751132827899,0.2048,2439.8,2439.7,3.25651876]
[1751132828769,0.7773,2440.5,2440.1,2.45883403]
[1751132828971,0.2048,2440.2,2440.1,3.27143403]
[1751132842325,0.2048,2440.2,2440.1,0.8126]
[1751132842495,0.2048,2440.2,2440.0,2.45897519]
[1751132843895,0.2048,2440.2,2439.9,3.28192922]
[1751132844937,0.2048,2440.2,2440.0,2.45900529]
[1751132846297,0.2048,2440.2,2439.9,3.28197952]
[1751132848648,0.2048,2440.2,2440.0,2.45901375]
[1751132851218,0.2048,2440.2,2440.1,2.45891561]
[1751132851931,0.7523,2440.6,2440.2,2.45876007]
[1751132852135,0.2048,2440.5,2440.2,2.45876007]
[1751132854302,0.34154293,2440.5,2439.9,0.8229]
[1751132854502,0.2048,2440.3,2440.0,2.45901294]
[1751132856023,0.2048,2440.3,2439.9,3.48681113]
[1751132856223,0.2048,2440.3,2440.1,2.4589134]
[1751132856626,0.2048,2440.3,2440.0,2.45896406]
[1751132857937,0.2048,2440.3,2440.1,2.45890632]
[1751132858145,0.2048,2440.3,2440.1,2.45886557]
[1751132860139,0.2048,2440.3,2439.9,3.48673328]
[1751132860140,0.2048,2440.3,2440.2,2.45881485]
[1751132863063,0.2048,2440.3,2440.1,2.45887429]
[1751132863458,0.2048,2440.3,2440.0,2.4589617]
[1751132864170,0.2048,2440.3,2439.8,2.45916115]
[1751132864171,3.72551742,2440.3,2439.8,2.45916115]
[1751132864319,0.2048,2440.1,2439.8,2.45916115]
[1751132865653,0.2048,2440.1,2439.8,2.45916492]
[1751132867989,0.2048,2440.1,2439.8,2.45921554]
[1751132871045,0.2048,2440.1,2439.7,1.0148]
[1751132871672,0.2048,2440.1,2439.7,2.02342904]
[1751132871844,0.2048,2440.1,2439.9,2.4590422]
[1751132876444,4.95721907,2440.6,2440.1,2.45883915]
[1751132876643,0.2048,2440.3,2440.1,2.45883915]
[1751132878951,0.2048,2440.3,2440.0,2.45895457]
[1751132879469,0.2048,2440.3,2440.1,2.45890791]
[1751132882056,0.2048,2440.3,2440.2,2.45881485]
[1751132882859,2.4988,2440.6,2440.3,2.45864618]
[1751132883061,0.2048,2440.5,2440.2,2.45877546]
[1751132884786,0.2048,2440.5,2440.1,2.66368625]
[1751132885575,0.2048,2440.5,2440.2,2.45877037]
[1751132886248,0.2048,2440.5,2440.1,2.66365915]
[1751132886870,0.2048,2440.5,2440.2,2.45880742]
[1751132889778,0.2048,2440.5,2440.1,0.2048]
[1751132889779,0.2048,2440.5,2440.1,2.6636702]
[1751132890970,0.2048,2440.5,2440.2,2.45880212]
[1751132894479,0.2048,2440.5,2440.2,2.45876105]
[1751132897287,0.2048,2440.5,2440.3,2.4587032]
[1751132898002,0.2048,2440.5,2440.4,2.45861334]
[1751132898399,0.2048,2440.5,2440.3,2.45866232]
[1751132899098,10.0,2440.7,2440.3,2.45866232]
[1751132899304,0.2048,2440.6,2440.3,2.45866232]
[1751132900170,0.2048,2440.6,2440.2,2.66357027]
[1751132900371,0.2048,2440.6,2440.3,2.45869991]
[1751132900569,0.2048,2440.6,2440.2,2.66357027]
[1751132900771,0.2048,2440.6,2440.2,2.6635919]
[1751132901014,0.2048,2440.6,2440.4,2.45856527]
[1751132901705,0.2048,2440.6,2440.5,2.45851259]
[1751132903073,0.2048,2440.6,2440.4,2.45857544]
[1751132904079,0.2048,2440.6,2440.5,2.45851259]
[1751132904279,0.7615,2441.0,2440.7,2.45831114]
[1751132904514,0.2048,2440.9,2440.7,2.45831114]
[1751132904670,0.2048,2440.9,2440.6,2.45836149]
[1751132905786,0.2048,2440.9,2440.5,2.45846069]
[1751132906181,0.2048,2440.9,2440.6,2.45840783]
[1751132910812,0.2048,2440.9,2440.7,2.45830021]
[1751132911293,0.784,2441.2,2440.8,2.4581839]
[1751132911495,0.9888,2441.2,2440.9,2.45801713]
[1751132912488,0.2058,2441.2,2441.0,2.45800748]
[1751132912687,0.2058,2441.2,2441.0,2.45798879]
[1751132913299,0.2058,2441.2,2441.1,2.45790832]
[1751132914200,0.001,2441.2,2441.1,2.45790832]
[1751132914399,0.001,2441.2,2441.1,3.02499874]
[1751132914614,0.001,2441.2,2441.1,4.32999874]
[1751132914918,0.001,2441.2,2441.1,4.53479874]
[1751132917399,0.001,2441.2,2441.1,23.96440884]
[1751132919508,0.001,2441.2,2441.1,27.96440884]
[1751132922903,0.001,2441.2,2441.1,34.57040884]
[1751132926030,0.001,2441.3,2441.2,13.00780763]
[1751132926230,0.001,2441.3,2441.2,21.80513187]
[1751132926434,0.001,2442.2,2441.2,21.80513187]
[1751132926435,0.001,2442.2,2442.1,2.45690184]
[1751132926608,0.001,2442.2,2442.1,12.09470184]
[1751132926809,0.001,2442.2,2442.1,12.29870184]
[1751132927026,0.001,2442.2,2442.1,13.7742706]
[1751132927222,0.001,2442.2,2442.1,13.7939392]
[1751132928136,0.001,2442.2,2442.1,33.2235493]
[1751132928524,0.001,2442.2,2442.1,33.2038807]
[1751132928832,0.9798,2443.4,2442.6,3.77599891]
[1751132929007,0.9798,2443.6,2443.1,0.204]
[1751132929215,0.9798,2443.6,2443.2,9.05979567]
[1751132929410,0.9798,2443.6,2443.2,6.604]
[1751132929411,3.43524688,2443.6,2443.2,6.604]
[1751132929610,0.7758,2443.4,2443.2,6.604]
[1751132929936,0.7758,2443.4,2443.1,0.204]
[1751132929937,1.0008655,2443.4,2443.1,0.204]
[1751132930114,0.7758,2443.2,2443.0,6.603]
[1751132930310,0.53439785,2443.8,2443.0,6.603]
[1751132930311,0.7758,2443.7,2443.3,2.45562955]
[1751132930614,0.7758,2443.7,2443.3,9.05864572]
[1751132930819,0.7758,2443.7,2443.4,2.45559]
[1751132931133,0.7758,2443.7,2443.4,0.05258132]
[1751132931299,0.7758,2443.7,2443.3,6.603]
[1751132931300,0.7758,2443.7,2443.5,0.05257916]
[1751132931505,1.0008655,2443.7,2443.5,0.05257916]
[1751132932443,1.0008655,2443.7,2443.6,9.05839368]
[1751132932444,0.2250655,2443.7,2443.6,9.05839368]
[1751132932612,0.7545,2444.2,2443.6,9.05839368]
[1751132932813,0.2250655,2443.7,2443.6,9.05839368]
[1751132933718,0.7545,2444.2,2443.6,6.603]
[1751132933921,0.25024404,2444.3,2443.9,0.55]
[1751132934131,2.45909349,2444.3,2443.7,0.55]
[1751132934442,2.45909349,2444.3,2443.9,2.45502505]
[1751132934443,0.00434421,2444.3,2443.9,2.45502505]
[1751132934739,0.00434421,2444.3,2443.9,2.45504283]
[1751132934944,0.2250655,2444.2,2444.1,2.45488003]
[1751132935115,0.2250655,2444.2,2443.9,3.00506025]
[1751132935444,2.45498095,2444.1,2443.6,0.7715]
[1751132935614,0.26800464,2444.0,2443.6,6.605]
[1751132935946,0.26800464,2444.0,2443.6,9.06032261]
[1751132936326,0.49307014,2444.0,2443.6,9.06032261]
[1751132936524,2.94807424,2444.0,2443.6,6.605]
[1751132936728,2.6800696,2444.0,2443.5,9.11306079]
[1751132936929,9.4296101,2443.9,2443.5,6.65757916]
[1751132937118,9.4296101,2443.9,2443.5,9.11304849]
[1751132937319,0.2250655,2443.9,2443.5,9.11299805]
[1751132937562,12.6390511,2444.1,2443.5,9.11299805]
[1751132937734,2.45499181,2444.0,2443.5,0.05257916]
[1751132937935,9.4296101,2443.9,2443.5,0.05257916]
[1751132938547,9.4296101,2443.9,2443.5,2.50806998]
[1751132938752,11.88471612,2443.9,2443.5,0.05257916]
[1751132938917,9.4296101,2443.9,2443.5,0.05257916]
[1751132939122,2.45503713,2444.0,2443.5,0.05257916]
[1751132939123,2.45504531,2444.0,2443.5,2.50801955]
[1751132939621,0.7545,2444.1,2443.6,2.45529641]
[1751132939939,0.7545,2444.1,2443.6,2.45539368]
[1751132940141,0.2250655,2443.9,2443.6,2.45539368]
[1751132940344,0.2250655,2443.9,2443.5,2.50807103]
[1751132940345,0.2250655,2443.9,2443.7,0.204]
[1751132940732,0.2250655,2443.9,2443.8,2.45519273]
[1751132940922,0.2250655,2443.9,2443.7,3.41264097]
[1751132941118,0.2250655,2443.9,2443.8,2.45519273]
[1751132941321,0.2250655,2443.9,2443.8,3.22557972]
[1751132942227,0.2250655,2443.9,2443.8,3.77557972]
[1751132942655,0.2250655,2443.9,2443.8,10.38157972]
[1751132943057,0.00434421,2444.3,2444.0,2.45492718]
[1751132943358,9.4296101,2444.2,2444.0,0.204]
[1751132943521,0.7749,2444.1,2443.7,0.204]
[1751132943721,9.4296101,2444.0,2443.7,0.204]
[1751132944223,0.2250655,2443.9,2443.7,0.204]
[1751132945061,0.2250655,2443.9,2443.7,2.65926107]
[1751132945357,9.4296101,2444.0,2443.7,2.65926107]
[1751132945857,0.204,2444.2,2443.9,2.45509227]
[1751132946058,9.4296101,2444.1,2443.9,0.204]
[1751132946465,0.2250655,2444.0,2443.8,0.204]
[1751132947331,9.4296101,2444.1,2443.8,0.204]
[1751132947332,9.4296101,2444.1,2443.9,2.45509227]
[1751132947646,0.00434421,2444.3,2443.9,2.45509227]
[1751132947647,0.2250655,2444.0,2443.9,2.45509227]
[1751132947852,0.2250655,2444.0,2443.9,3.57724016]
[1751132948166,0.2250655,2444.0,2443.9,3.78124016]
[1751132948462,0.00434421,2444.3,2444.2,2.45479093]
[1751132948759,0.00434421,2444.3,2444.2,2.65879093]
[1751132949171,0.00434421,2444.3,2444.2,0.204]
[1751132949536,0.00434421,2444.3,2444.2,2.65879093]
[1751132949747,0.22940971,2444.3,2444.2,2.65879093]
[1751132950257,0.00434421,2444.3,2444.2,2.65879093]
[1751132950667,0.22940971,2444.3,2444.2,2.65879093]
[1751132951671,0.00434421,2444.3,2444.2,5.19255782]
[1751132951870,0.00434421,2444.3,2444.2,14.98855782]
[1751132952030,0.22940971,2444.3,2444.2,14.98855782]
[1751132952227,1.49386988,2444.9,2444.8,2.45418848]
[1751132952426,1.49386988,2444.9,2444.4,0.8296]
[1751132952666,1.49386988,2444.9,2444.5,2.45446562]
[1751132952667,9.4296101,2444.8,2444.5,2.45446562]
[1751132952979,9.4296101,2444.8,2444.2,0.8296]
[1751132953137,9.4296101,2444.8,2444.1,2.45486872]
[1751132953138,10.2272101,2444.6,2444.1,2.45486872]
[1751132953339,0.7976,2444.6,2444.2,9.07878424]
[1751132953537,0.7976,2444.6,2444.3,2.4546905]
[1751132953854,0.7976,2444.6,2444.2,2.4547547]
[1751132954057,0.7976,2444.6,2444.2,6.624]
[1751132954430,0.7976,2444.6,2444.2,9.0787031]
[1751132954668,0.7976,2444.6,2444.0,3.00494916]
[1751132954838,0.7976,2444.6,2444.0,8.312]
[1751132955037,0.7976,2444.6,2444.1,2.45482671]
[1751132955038,3.25199761,2444.6,2444.1,2.45482671]
[1751132955363,3.25199761,2444.6,2444.0,8.312]
[1751132955364,0.7976,2444.6,2444.0,10.76696898]
[1751132955553,3.25204096,2444.6,2444.0,10.76696898]
[1751132955757,3.25204096,2444.6,2443.9,2.45508621]
[1751132955758,3.25204096,2444.6,2444.1,2.45488375]
[1751132956273,3.25204096,2444.6,2443.9,10.76808621]
[1751132956467,3.25204096,2444.6,2444.1,2.45483686]
[1751132956668,3.25204096,2444.6,2444.0,2.45496586]
[1751132956833,0.7976,2444.6,2444.0,2.45492585]
[1751132957034,3.25208436,2444.6,2444.0,2.45492585]
[1751132957257,3.25208436,2444.6,2443.8,0.8296]
[1751132957258,2.45468288,2444.4,2443.8,3.28473582]
[1751132957459,2.45468288,2444.4,2443.9,6.624]
[1751132957460,3.22124922,2444.4,2443.9,6.624]
[1751132957758,3.22124922,2444.4,2443.9,9.07909188]
[1751132957959,0.7666,2444.4,2443.9,9.07909188]
[1751132958926,0.7666,2444.4,2443.6,11.507]
[1751132958927,0.7666,2444.3,2443.6,11.507]
[1751132959147,3.22132651,2444.3,2443.8,2.45518546]
[1751132959541,3.22132651,2444.3,2443.7,9.07924774]
[1751132959954,2.45479986,2444.2,2443.7,9.07924774]
[1751132960155,0.7666,2444.3,2443.7,9.07924774]
[1751132960156,3.22133785,2444.3,2443.8,2.45517861]
[1751132961062,0.7666,2444.3,2443.7,9.07926029]
[1751132961266,0.7666,2444.3,2443.8,2.45509697]
[1751132961464,0.7666,2444.3,2443.8,2.45516555]
[1751132961776,0.7666,2444.3,2444.0,0.204]
[1751132962550,0.7666,2444.3,2444.0,2.65894957]
[1751132962741,0.7666,2444.3,2444.0,0.204]
[1751132962942,0.7666,2444.3,2444.0,2.65890573]
[1751132963164,0.7666,2444.3,2444.1,2.45489137]
[1751132963481,15.95117555,2444.7,2444.1,2.45489137]
[1751132963482,0.204,2444.7,2444.2,0.204]
[1751132963635,1.688,2445.3,2444.6,2.45432039]
[1751132963980,1.0145,2445.0,2444.7,2.45422438]
[1751132964265,1.0145,2445.0,2444.6,2.65834976]
[1751132964266,3.46851438,2445.0,2444.6,0.204]
[1751132964437,3.46851438,2445.0,2444.6,2.65838558]
[1751132964438,1.0145,2445.0,2444.6,2.65838558]
[1751132964632,1.0145,2445.0,2444.6,0.204]
[1751132964856,3.46850566,2445.0,2444.6,0.204]
[1751132965186,14.30733486,2444.8,2443.8,0.7684]
[1751132965469,2.65835508,2444.7,2444.2,2.65877361]
[1751132965668,0.204,2444.7,2444.3,2.45466961]
[1751132965843,0.204,2444.7,2444.2,2.65874349]
[1751132965844,2.65829399,2444.7,2444.2,2.65874349]
[1751132966033,0.204,2444.7,2444.3,2.4546898]
[1751132966764,13.46870382,2444.8,2444.4,0.204]
[1751132967063,14.8959553,2444.8,2444.4,0.204]
[1751132967441,14.89594692,2444.8,2444.4,0.204]
[1751132967951,14.89598104,2444.8,2444.4,0.204]
[1751132968274,14.89598104,2444.8,2444.2,2.65876656]
[1751132968275,2.65830094,2444.7,2444.2,2.65876656]
[1751132968870,2.65830094,2444.7,2444.2,0.204]
[1751132968871,2.45442051,2444.6,2444.2,0.204]
[1751132969047,0.204,2444.7,2444.2,0.204]
[1751132969247,0.204,2444.7,2444.3,2.45464285]
[1751132970270,0.204,2444.7,2444.2,2.65875057]
[1751132970479,2.6582948,2444.7,2444.2,2.65875057]
[1751132970681,2.6582948,2444.7,2444.2,2.65870044]
[1751132970682,0.204,2444.7,2444.2,2.65870044]
[1751132971171,0.204,2444.7,2444.2,0.204]
[1751132971172,3.23978404,2444.6,2444.2,0.204]
[1751132971394,2.45455345,2444.5,2444.2,0.204]
[1751132971553,2.65855345,2444.5,2444.1,0.204]
[1751132972492,0.7853,2444.3,2444.1,0.204]
[1751132973164,0.7853,2444.3,2444.1,2.65886753]
[1751132973362,0.7853,2444.3,2444.1,0.204]
[1751132974292,0.7853,2444.3,2444.1,2.65882966]
[1751132974489,10.9893,2444.5,2444.1,2.65882966]
[1751132975118,0.7853,2444.5,2444.3,2.45463749]
[1751132975262,2.45419515,2444.8,2444.3,2.45463749]
[1751132975263,0.7853,2444.7,2444.3,2.65863749]
[1751132975666,0.204,2444.8,2444.3,2.65863749]
[1751132975667,0.204,2444.8,2444.4,2.45459008]
[1751132975865,0.204,2444.8,2444.6,2.45437546]
[1751132976102,0.204,2444.8,2444.5,2.45445444]
[1751132976484,0.204,2444.8,2444.4,2.45459008]
[1751132976485,0.204,2444.8,2444.4,2.45453768]
[1751132976701,0.204,2444.8,2444.3,0.204]
[1751132976702,0.7853,2444.7,2444.3,0.204]
[1751132976863,0.7853,2444.7,2444.4,2.45457668]
[1751132977779,20.578974,2444.9,2444.4,2.45457668]
[1751132977780,1.49386988,2444.9,2444.8,2.45418848]
[1751132977977,1.49386988,2444.9,2444.8,3.99408848]
[1751132978617,0.2250655,2445.2,2445.1,2.45388736]
[1751132978770,0.01032816,2446.6,2446.1,0.7859]
[1751132978988,0.01032816,2446.6,2446.5,3.78838313]
[1751132979198,0.005,2447.9,2446.8,10.7859]
[1751132979397,0.005,2447.9,2447.8,0.55]
[1751132979610,0.005,2447.9,2447.5,2.4899]
[1751132979822,2.4514433,2447.6,2446.8,2.45218244]
[1751132980136,13.49683486,2447.4,2446.7,0.7859]
[1751132980302,13.49683486,2447.4,2446.6,2.45234195]
[1751132980501,9.95,2447.3,2446.6,2.45234195]
[1751132980711,9.95,2447.3,2446.4,2.45258338]
[1751132980712,13.49683486,2447.4,2446.3,5.01857256]
[1751132980918,15.94868468,2447.2,2446.3,0.7859]
[1751132981222,0.745272,2447.2,2446.5,0.55]
[1751132981522,0.745272,2447.2,2447.1,1.3359]
[1751132981723,0.745272,2447.2,2447.1,0.7859]